{"text_format":"2","workbook":"xlsx","n_sheets":1,"sheets":["Sheet1"],"not_rendered":{"charts":0,"images":0,"macros":0,"external_links":0,"defined_names":0,"comments":0,"pivot_tables":0},"unopened":[],"bounds":{"document_bytes":16777216,"sheet_cells":100000,"run_cost":"one","rows_first":2000,"rows_last":500,"rows_between":2000,"halvings":0,"cell_chars":16384,"cell_head_chars":4096},"cells_cut":0,"cells_raw":0,"read":"whole","date_system":"1900"}

{"sheet":"Sheet1","index":0,"n_rows":67,"n_cols":6,"rows_kept":67,"cut":false,"hidden":false,"merged":[[65,1,65,5],[66,1,66,5],[65,0,66,0],[61,0,62,0],[61,1,61,5],[62,1,62,5],[63,0,64,0],[63,1,63,5],[64,1,64,5],[57,0,58,0],[57,1,57,5],[58,1,58,5],[59,0,60,0],[59,1,59,5],[60,1,60,5],[53,0,54,0],[53,1,53,5],[54,1,54,5],[55,0,56,0],[55,1,55,5],[56,1,56,5],[49,0,50,0],[49,1,49,5],[50,1,50,5],[51,0,52,0],[51,1,51,5],[52,1,52,5],[44,1,44,4],[45,1,45,4],[46,1,46,5],[47,0,48,0],[47,1,47,5],[48,1,48,5],[38,1,38,4],[40,2,41,2],[40,3,41,3],[40,4,41,4],[40,5,41,5],[42,2,43,2],[42,3,43,3],[42,4,43,4],[42,5,43,5],[34,0,35,0],[34,2,35,2],[34,3,35,3],[34,4,35,4],[34,5,35,5],[36,0,37,0],[36,2,37,2],[36,3,37,3],[36,4,37,4],[36,5,37,5],[30,0,31,0],[30,2,31,2],[30,3,31,3],[30,4,31,4],[30,5,31,5],[32,0,32,4],[26,0,27,0],[26,2,27,2],[26,3,27,3],[26,4,27,4],[26,5,27,5],[28,0,29,0],[28,2,29,2],[28,3,29,3],[28,4,29,4],[28,5,29,5],[22,0,23,0],[22,2,23,2],[22,3,23,3],[22,4,23,4],[22,5,23,5],[24,0,25,0],[24,2,25,2],[24,3,25,3],[24,4,25,4],[24,5,25,5],[18,0,19,0],[18,2,19,2],[18,3,19,3],[18,4,19,4],[18,5,19,5],[20,0,21,0],[20,2,21,2],[20,3,21,3],[20,4,21,4],[20,5,21,5],[14,0,15,0],[14,2,15,2],[14,3,15,3],[14,4,15,4],[14,5,15,5],[16,0,17,0],[16,2,17,2],[16,3,17,3],[16,4,17,4],[16,5,17,5],[12,0,13,0],[12,2,13,2],[12,3,13,3],[12,4,13,4],[12,5,13,5],[6,0,7,0],[6,2,7,2],[6,3,7,3],[6,4,7,4],[6,5,7,5],[8,0,9,0],[8,2,9,2],[8,3,9,3],[8,4,9,4],[8,5,9,5],[1,0,1,5],[2,0,2,5],[0,0,0,5],[4,0,5,0],[4,2,5,2],[4,3,5,3],[4,4,5,4],[4,5,5,5],[10,0,10,4]]}
["Clean Up Soq Al Mosul, Shekh Abo Al Ola 2 Neighborhoods In The Old City - West Mosul\n"]
["The contractor will strive to ensure that 20% of the work force consist of women "]
["Contractor to provide samples prior of proceeding for Polyethylene garbage bags and Trash Containers "]
["A","Item Description/ Laborers","Qty","Working Days","Price $","Total $"]
[1,"Laborers for clean-up the city sector ",150,45,20,{"$f":"C5*D5*E5","v":135000}]
[null,"عمال التنظيف للشوارع"]
[2,"Workers' monitors",3,45,22,{"$f":"C7*D7*E7","v":2970}]
[null,"مراقبي العمال "]
[3,"Management Fees "]
[null,"نسبة صرفيات أدارة العمال والعمل"]
["Sub Total"]
["B","Item Description/ Equipments","Qty","Working Days","Price $","Total $"]
[1,"Tractor with trailer for hauling garbage",6,45,null,{"$f":"C13*D13*E13","v":0}]
[null,"ساحبات لرفع القمامة والأنقاض (تراكتور)"]
[2,"Mini dumper truck, 1 M3 capacity",6,45,null,{"$f":"C15*D15*E15","v":0}]
[null,"دنبر سعة 1 م3"]
[3,"Mini shovel - Bobcat ",4,45,null,{"$f":"E17*D17*C17","v":0}]
[null,"شفل صغير نوع ( Bobcat)  لتحميل الأنقاض"]
[4,"Bakholoader",2,45,null,{"$f":"C19*D19*E19","v":0}]
[null,"شفل متعدد الاغراض"]
[5,"Excavator with drill hammer, arm length more than 10 m",1,30,null,{"$f":" C21*D21*E21","v":0}]
[null,"حفارة , طول الذراع اكثر من 10 متر"]
[6,"Front end loader (Shovel)",2,45,null,{"$f":"C23*D23*E23","v":0}]
[null,"شفل لتحميل الأنقاض"]
[7,"Tipper trucks / dump trucks",6,45,null,0]
[null,"لوري قلاب لحمل الأنقاض والقمامة"]
[8,"Heavy trucks / loader trucks \"flat\" of 12.6 x 2.5m dimension",1,25,null,{"$f":"E27*D27*C27","v":0}]
[null,"لوري فلات بابعاد 12.6* 2.5م"]
[9,"Truck Crane of 25 ton capacity",1,25,null,{"$f":"E29*D29*C29","v":0}]
[null,"كرين  سعة التحميل 25 طن "]
[10,"Water Bowser Truck, minimum 18,000 Ltr",1,30,null,{"$f":"C31*D31*E31","v":0}]
[]
["Sub Total",{"$nulls":4},{"$f":"SUM(F13:F32)","v":0}]
["C","Item Description/ Tools and suits","Unit","Qty","Price $","Total $"]
[1,"Supply uniforms with the same color and style but various sizes; one uniform for each laborer. ","  EA",155,null,{"$f":"E35*D35","v":0}]
[null,"تجيهز العمل ببدلات نفس اللون والنوع وبمختلف القياسات وبمعدل بدلة واحدة لكل عامل ."]
[2,"Supply clean-up tools (2 trowels, 2 Sweepers, 1 Wheelbarrow) for each 5 workers. (continuous compensation for the damaged tools). The set includes provide laborers with  respirator masks and gloves. \n","EA",30,null,{"$f":"D37*E37","v":0}]
[null,"تجهيز معدات التنظيف وتشمل (كرك عدد 2، فرشة كنس 2، عربانة 1) لكل 5 عمال. (مع تعويض المعدات التالفة بصورة مستمرة) . العمل يتضمن تجهيز العمال بالأقنعة والكمامات الواقية ."]
[null,"Sub Total",null,null,null,{"$f":"SUM(F35:F38)","v":0}]
["D","Item Description/ Trash Containers and Garbage Bags / حاويات واكياس النفايات","Unit","Qty","Price $","Total $"]
[1,"Supply and distribute durable plastic garbage collection container of 1100 litter size. The containers must be of the friend to the environment type, be used abroad,  have a movable cover, and be based on wheels.","  EA",65,null,{"$f":"D41*E41","v":0}]
[null,"تجهيز وتوزيع حاويات قمامة بلاستيكية بسعة 1100 لتر على ان تكون من النوع صديق للبيئة وتستخدم في الخارج وتحتوي على غطاء متحرك وتستند على عجلات متحركة"]
[2,"Supply polyethylene garbage bags of size not less than (70*90)cm and black color to distribute them to the local houses and shops under the supervision of Municipality DG","Ton",2,null,{"$f":"D43*E43","v":0}]
[null,"تجهيز اكياس نفايات مصنوعة من مادة البولي اثيلين بحجم لا يقل عن (70×90)سم للكيس وبلون اسود وتوزيعها على البيوت والمحلات باشراف مديرية البلدية."]
[null,"Sub Total",null,null,null,{"$f":"SUM(F41:F44)","v":0}]
[null,"Total Cost $",null,null,null,{"$f":"F45+F39+F33+F11","v":0}]
[null,"Obligations and Duties of the Contractor  "]
[1,"The works include provision of all necessary machinery, tools, and laborers\nas mentioned in this BOQ to clean-up all streets, schools, governmental buildings, and oil waste from Oiled wells fires and remove all rubble, garbage kinds from the areas determined by Municipality DG. Responsibilities of the contractor include the removal of trash, debris, surplus constructional materials, stagnant water, mud, scrap car bodies, junk, dead animals, severed trees and leaves. All such materials shall be removed from the streets, trash containers and areas adjacent to such containers, sidewalks, medians, street crossings and roundabouts."]
[null,"يتضمن العمل تجهيز كل ما هو ضروري من مكائن، معدات، وعمال حسب جدول الكميات ادناه لرفع النفايات من المناطق التي تحددها مديرية البلدية  وتنظيفها بالكامل. مسؤولية المقاول تتضمن رفع الادغال والأنقاض والمواد الانشائية الزائدة والمياه الراكدة والطين والسيارات المحطمة والحيوانات الميتة والخردة والاشجار المقطوعة وحاويات النفايات وما حولها ومماشي وساحات وتقاطعات الطرق وما حولها وكل المواد الغير مرغوب فيها."]
[2," The Contractor shall remove all debris from the site to approved temporary locations assigned by the local authorities, and finally to DG approved landfill."]
[null,"على المقاول رفع الانقاض والمخلفات الى مواقع تجميع مؤقتة ومصادق عليها من قبل السلطات المحلية وبعد ذلك الى منطقة الطمر الصحي."]
[3,"The contractor is not allowed to burn trashes, cut trees, and remove the debris from inside the private buildings."]
[null," لا يسمح بحرق النفايات وقطع الاشجار ورفع المخلفات من داخل البيوت والابنية الخاصة."]
[4,"The Contractor shall employ the number of laborers, monitors, and equipment operators determined in this BOQ.  The Contractor is required to employ 100% of the laborers from the local community of the targeted areas in coordination with Municipality DG. The work monitors will be chosen by the supervision committee."]
[null,"يجب على المقاول تشغيل عدد من العمال والمراقبين ومشغلي المعدات وكما محدد في جدول الكميات على ان يكون 100% من العمال من المنطقة المحلية بالتنسيق مع مديرية البلدية يكون اختيار مراقبي العمل من قبل اللجنة المشرفة على المشروع."]
[5," All the wages of the laborers and monitors shall be paid by the contractor per day; and on fixed daily wages of a $20 per day for the laborer for eight hours of labor."]
[null,"جميع الاجور للعمال يجب أن تدفع من قبل المقاول يومياً، وبمقدار ثابت هو 20 دولار للعامل في اليوم الواحد بواقع 8 ساعات عمل."]
[6,"The contractor must provide an office at the center of the specified sector in to follow up and supervise the work, and to be used for the laborers' payments. The laborers must be paid with the attendance of the FFIS and Municipality supervision committee."]
[null,"على المقاول تجهيز مبنى او كرفان مؤثث في مركز موقع البلدية يكون مكتب متابعة واشراف للعمل ولدفع الاجور اليومية للعمال بشرط حضور ممثل عن لجنة الاشراف على المشروع اثناء دفع الاجور."]
[7,"The contractor will be obliged to take guidance, in relation to process and selection criteria, from a Local Authority/UNDP advisory team in relation to how the labor force is identified\n"]
[null,"المقاول سيكون ملزم لأتخاذ التوجيهات فيما يتعلق بمعايير الأختيار للعمال وتحديدهم بالتنسيق مع اللجنة المشرفة على العمل من قبل السلطة المحلية وفريق الأشراف من برنامج الأمم المتحدة الأنمائي"]
[8,"The contractor should fixed the management fees percentage in Item 2"]
[null,"على المقاول تثبيت نسبة تكاليف أجور أدارة العمل والعمال والتي سيدفع أجورهم اليومية والواردة بالفقرة 2 من جدول الكميات  واجور المكائن وغيرها من فقرات العمل "]
[9,"The contractor will be provided with explosive hazard awareness training by UNMAS. The contractor is responsible for the coordination with security agencies for the removal of EH if any is found during the clearance work. Clearance work is done on the contractor’s own risk.’"]
[null,"من اجل التنبيه على مخاطر الالغام سيتلقى كادر المقاول تدريبا من قبل مكتب الأمم المتحدة للأعمال المتعلقة بالألغام . وعلى المقاول التنسيق مع القوات الامنية المتواجدة في المنطقة من اجل تامين المنطقة من المتفجرات ان وجدت"]
[10,"The contractor should strive to appoint 20% from the total laborers by women"]
[null,"على المقاول ان يسعى جاهدا لتشغيل كادر من النساء بمعدل  20% من مجموع العمال "]